fUST/lending_fUST_20250111
["ID","MTS","AMOUNT","RATE_DAILY","PERIOD"]
[348467370,1736542247082,-4026.83835008,0.00021917,3]
[348467898,1736542358719,158.941676,0.00013973,2]
[348467901,1736543332691,158.941676,0.00013973,2]
[348467950,1736543432796,-292.68453884,0.000189,2]
[348467952,1736543432805,-150.0,0.00019371,2]
[348467954,1736543432816,-2925.0,0.00020146,2]
[348467956,1736543432828,-167.192672,0.00020827,2]
[348467957,1736543432838,-1209.16113291,0.00020984,2]
[348467959,1736543432848,-1209.16113291,0.00020998,2]
[348467962,1736543432859,-1209.16113291,0.00021,2]
[348467964,1736543432869,-2925.0,0.00021758,4]
[348467966,1736543432879,-182.32714222,0.00021817,2]
[348467968,1736543432888,-1834.0,0.00021915,2]
[348467970,1736543432898,-300.0,0.00021915,2]
[348467972,1736543432907,-191.81349161,0.00021916,2]
[348467974,1736543432917,-196.33778374,0.00021916,2]
[348467976,1736543432926,-367.33621243,0.00021916,2]
[348467977,1736543432936,-238.80328494,0.00021916,2]
[348467979,1736543432945,-500.0,0.00021916,2]
[348467981,1736543432955,-250.60832722,0.00021916,2]
[348467983,1736543432964,-621.16456935,0.00021916,2]
[348467985,1736543432974,-500.0,0.00021916,2]
[348467987,1736543432984,-188.43576863,0.00021916,2]
[348467989,1736543432993,-227.09364711,0.00021916,2]
[348467991,1736543433002,-412.66659049,0.00021916,2]
[348467994,1736543433013,-155.034,0.00021916,2]
[348467996,1736543433022,-499.0,0.00021916,2]
[348467998,1736543433032,-644.23520419,0.00021917,3]
[348468000,1736543433042,-500.0,0.00021917,3]
[348468001,1736543433051,-500.48718323,0.00021917,3]
[348468002,1736543433060,-500.0,0.00021917,2]
[348468003,1736543433070,-500.0,0.00021917,3]
[348468004,1736543433079,-500.0,0.00021917,3]
[348468005,1736543433090,-500.0,0.00021917,3]
[348468006,1736543433099,-404.14389723,0.00021917,3]
[348468007,1736543433108,-500.0,0.00021917,3]
[348468008,1736543433118,-500.0,0.00021917,2]
[348468009,1736543433128,-500.0,0.00021917,2]
[348468010,1736543433137,-427.86612109,0.00021917,3]
[348468011,1736543433147,-500.0,0.00021917,3]
[348468012,1736543433156,-500.0,0.00021917,3]
[348468013,1736543433166,-4777.36,0.00021917,3]
[348468014,1736543433176,-539.42,0.00021917,3]
[348468015,1736543433185,-631.93,0.00021917,3]
[348468016,1736543433195,-503.57,0.00021917,3]
[348468017,1736543433204,-500.0,0.00021917,3]
[348468018,1736543433213,-500.0,0.00021917,3]
[348468019,1736543433222,-500.0,0.00021917,3]
[348468020,1736543433232,-594.81,0.00021917,3]
[348468021,1736543433241,-500.0,0.00021917,3]
[348468022,1736543433251,-618.96047419,0.00021917,3]
[348468023,1736543433260,-574.99,0.00021917,3]
[348468024,1736543433269,-500.0,0.00021917,3]
[348468025,1736543433279,-500.0,0.00021917,3]
[348468026,1736543433288,-260.85583366,0.00021917,3]
[348468027,1736543433298,-500.0,0.00021917,3]
[348468028,1736543433307,-500.0,0.00021917,3]
[348468029,1736543433317,-500.0,0.00021917,3]
[348468030,1736543433327,-500.0,0.00021917,3]
[348468031,1736543433336,-500.0,0.00021917,3]
[348468032,1736543433345,-500.0,0.00021917,3]
[348468033,1736543433355,-500.0,0.00021917,3]
[348468034,1736543433364,-500.0,0.00021917,2]
[348468035,1736543433373,-500.0,0.00021917,2]
[348468036,1736543433383,-500.0,0.00021917,3]
[348468037,1736543433392,-500.0,0.00021917,3]
[348468038,1736543433402,-500.0,0.00021917,3]
[348468039,1736543433411,-690.11,0.00021917,3]
[348468040,1736543433420,-19938.82,0.00021917,3]
[348468041,1736543433430,-500.0,0.00021917,3]
[348468042,1736543433439,-500.0,0.00021917,3]
[348468043,1736543433449,-500.0,0.00021917,3]
[348468044,1736543433459,-879.76,0.00021917,3]
[348468045,1736543433469,-500.0,0.00021917,3]
[348468046,1736543433478,-500.0,0.00021917,3]
[348468047,1736543433487,-879.13,0.00021917,3]
[348468048,1736543433496,-500.0,0.00021917,3]
[348468049,1736543433505,-500.0,0.00021917,3]
[348468050,1736543433514,-712.41,0.00021917,3]
[348468051,1736543433524,-830.12,0.00021917,2]
[348468052,1736543433533,-500.0,0.00021917,3]
[348468053,1736543433543,-962.03,0.00021917,3]
[348468054,1736543433552,-500.0,0.00021917,3]
[348468055,1736543433562,-2291.34,0.00021917,3]
[348468056,1736543433572,-500.0,0.00021917,3]
[348468057,1736543433581,-715.23,0.00021917,3]
[348468058,1736543433590,-608.37,0.00021917,3]
[348468059,1736543433600,-500.0,0.00021917,3]
[348468060,1736543433609,-500.0,0.00021917,3]
[348468061,1736543433619,-4017.72,0.00021917,3]
[348468062,1736543433629,-500.0,0.00021917,2]
[348468063,1736543433639,-797.95,0.00021917,3]
[348468064,1736543433648,-500.0,0.00021917,3]
[348468065,1736543433658,-500.0,0.00021917,3]
[348468066,1736543433667,-500.0,0.00021917,3]
[348468067,1736543433676,-500.0,0.00021917,3]
[348468068,1736543433686,-500.0,0.00021917,3]
[348468069,1736543433695,-560.08,0.00021917,3]
[348468070,1736543433705,-650.45,0.00021917,3]
[348468071,1736543433714,-329.31,0.00021917,3]
[348468072,1736543433723,-500.0,0.00021917,3]
[348468073,1736543433733,-500.0,0.00021917,3]
[348468074,1736543433743,-1678.9,0.00021917,3]
[348468075,1736543433752,-500.0,0.00021917,3]
[348468076,1736543433762,-1106.35,0.00021917,3]
[348468077,1736543433771,-500.0,0.00021917,3]
[348468078,1736543433780,-717.91,0.00021917,3]
[348468079,1736543433790,-500.0,0.00021917,3]
[348468080,1736543433799,-4786.94,0.00021917,3]
[348468081,1736543433809,-346.15612994,0.00021917,3]
[348468082,1736543433822,-1785.75,0.00021917,3]
[348468083,1736543433832,-935.06,0.00021917,3]
[348468084,1736543433842,-831.06,0.00021917,3]
[348468085,1736543433852,-500.0,0.00021917,3]
[348468086,1736543433863,-1018.92,0.00021917,3]
[348468087,1736543433873,-500.0,0.00021917,3]
[348468088,1736543433883,-1635.8,0.00021917,3]
[348468089,1736543433894,-500.0,0.00021917,3]
[348468090,1736543433905,-500.0,0.00021917,3]
[348468091,1736543433914,-500.0,0.00021917,3]
[348468092,1736543433924,-500.0,0.00021917,3]
[348468093,1736543433934,-1377.89,0.00021917,3]
[348468094,1736543433944,-652.47,0.00021917,3]
[348468095,1736543433954,-338.53772778,0.00021973,2]
[348468096,1736543433964,-500.0,0.00021973,2]
[348468097,1736543433975,-3169.58572955,0.00022,4]
[348468098,1736543433987,-1412.57,0.00022,2]
[348468099,1736543433997,-151.0,0.00022,2]
[348468100,1736543434007,-758.492,0.0002208,2]
[348468101,1736543434017,-500.0,0.0002219,2]
[348468102,1736543434028,-47650.7624186,0.00022191,5]
[348468103,1736543434038,-13178.44905695,0.00022191,5]
[348468104,1736543434048,-500.0,0.00022191,3]
[348468105,1736543434058,-500.0,0.00022191,3]
[348468106,1736543434068,-500.0,0.00022191,2]
[348468107,1736543434077,-500.0,0.00022191,3]
[348468108,1736543434087,-500.0,0.00022191,3]
[348468109,1736543434096,-4777.36,0.00022191,3]
[348468110,1736543434106,-539.42,0.00022191,3]
[348468111,1736543434116,-631.93,0.00022191,3]
[348468112,1736543434126,-503.57,0.00022191,3]
[348468113,1736543434135,-500.0,0.00022191,3]
[348468114,1736543434146,-500.0,0.00022191,3]
[348468115,1736543434155,-594.81,0.00022191,3]
[348468116,1736543434165,-574.99,0.00022191,3]
[348468117,1736543434175,-500.0,0.00022191,3]
[348468118,1736543434185,-500.0,0.00022191,3]
[348468119,1736543434194,-500.0,0.00022191,3]
[348468120,1736543434204,-500.0,0.00022191,3]
[348468121,1736543434213,-500.0,0.00022191,3]
[348468122,1736543434224,-500.0,0.00022191,3]
[348468123,1736543434233,-500.0,0.00022191,3]
[348468124,1736543434243,-500.0,0.00022191,3]
[348468125,1736543434252,-500.0,0.00022191,2]
[348468126,1736543434262,-500.0,0.00022191,3]
[348468127,1736543434272,-538.74,0.00022191,3]
[348468128,1736543434281,-500.0,0.00022191,3]
[348468129,1736543434290,-690.11,0.00022191,3]
[348468130,1736543434300,-19938.82,0.00022191,3]
[348468131,1736543434309,-500.0,0.00022191,3]
[348468132,1736543434319,-292.96007664,0.00022191,3]
[348468133,1736543434328,-879.76,0.00022191,3]
[348468134,1736543434337,-500.0,0.00022191,3]
[348468135,1736543434347,-879.13,0.00022191,3]
[348468136,1736543434359,-500.0,0.00022191,3]
[348468137,1736543434369,-500.0,0.00022191,3]
[348468138,1736543434379,-712.41,0.00022191,3]
[348468139,1736543434389,-830.12,0.00022191,2]
[348468140,1736543434398,-500.0,0.00022191,3]
[348468141,1736543434408,-962.03,0.00022191,3]
[348468142,1736543434418,-2291.34,0.00022191,3]
[348468143,1736543434428,-500.0,0.00022191,3]
[348468144,1736543434438,-715.23,0.00022191,3]
[348468145,1736543434447,-608.37,0.00022191,3]
[348468146,1736543434458,-500.0,0.00022191,3]
[348468147,1736543434468,-4017.72,0.00022191,3]
[348468148,1736543434478,-797.95,0.00022191,3]
[348468149,1736543434489,-500.0,0.00022191,3]
[348468150,1736543434498,-500.0,0.00022191,3]
[348468151,1736543434508,-500.0,0.00022191,3]
[348468152,1736543434518,-500.0,0.00022191,3]
[348468153,1736543434528,-560.08,0.00022191,3]
[348468154,1736543434537,-650.45,0.00022191,3]
[348468155,1736543434548,-500.0,0.00022191,3]
[348468156,1736543434558,-500.0,0.00022191,3]
[348468157,1736543434567,-1678.9,0.00022191,3]
[348468158,1736543434576,-500.0,0.00022191,3]
[348468159,1736543434586,-1106.35,0.00022191,3]
[348468160,1736543434595,-500.0,0.00022191,3]
[348468161,1736543434607,-717.91,0.00022191,3]
[348468162,1736543434616,-302.11510001,0.00022191,3]
[348468163,1736543434625,-4786.94,0.00022191,3]
[348468164,1736543434634,-1785.75,0.00022191,3]
[348468165,1736543434644,-935.06,0.00022191,3]
[348468166,1736543434653,-831.06,0.00022191,3]
[348468167,1736543434663,-500.0,0.00022191,3]
[348468168,1736543434673,-1018.92,0.00022191,3]
[348468169,1736543434682,-500.0,0.00022191,3]
[348468170,1736543434692,-1635.8,0.00022191,3]
[348468171,1736543434702,-500.0,0.00022191,3]
[348468172,1736543434711,-500.0,0.00022191,3]
[348468173,1736543434721,-500.0,0.00022191,3]
[348468174,1736543434730,-1377.89,0.00022191,3]
[348468175,1736543434739,-652.47,0.00022191,3]
[348468176,1736543434749,-501.23624203,0.00022327,2]
[348468177,1736543434759,-153.0,0.00022341,2]
[348468178,1736543434768,-153.0,0.00022341,2]
[348468179,1736543434778,-153.0,0.00022341,2]
[348468180,1736543434787,-182.32714222,0.00022365,2]
[348468181,1736543434797,-171.200819,0.00022383,7]
[348468182,1736543434807,-150.72,0.000224,2]
[348468183,1736543434818,-150.73114584,0.000224,2]
[348468184,1736543434827,-500.0,0.00022465,3]
[348468185,1736543434837,-445.08,0.00022465,3]
[348468186,1736543434846,-500.0,0.00022465,2]
[348468187,1736543434856,-500.0,0.00022465,3]
[348468188,1736543434976,-500.0,0.00022465,3]
[348468189,1736543435009,-4777.36,0.00022465,3]
[348468190,1736543435019,-539.42,0.00022465,3]
[348468191,1736543435028,-631.93,0.00022465,3]
[348468192,1736543435038,-503.57,0.00022465,3]
[348468193,1736543435047,-500.0,0.00022465,3]
[348468194,1736543435057,-500.0,0.00022465,3]
[348468195,1736543435066,-594.81,0.00022465,3]
[348468196,1736543435076,-574.99,0.00022465,3]
[348468197,1736543435085,-500.0,0.00022465,3]
[348468198,1736543435094,-500.0,0.00022465,3]
[348468199,1736543435105,-500.0,0.00022465,3]
[348468200,1736543435114,-500.0,0.00022465,3]
[348468201,1736543435123,-500.0,0.00022465,3]
[348468202,1736543435133,-500.0,0.00022465,3]
[348468203,1736543435142,-500.0,0.00022465,3]
[348468204,1736543435151,-500.0,0.00022465,3]
[348468205,1736543435161,-500.0,0.00022465,2]
[348468206,1736543435170,-500.0,0.00022465,3]
[348468207,1736543435181,-500.0,0.00022465,3]
[348468208,1736543435191,-690.11,0.00022465,3]
[348468209,1736543435201,-19938.82,0.00022465,3]
[348468210,1736543435212,-500.0,0.00022465,3]
[348468211,1736543435222,-879.76,0.00022465,3]
[348468212,1736543435232,-500.0,0.00022465,3]
[348468213,1736543435242,-500.0,0.00022465,3]
[348468214,1736543435253,-879.13,0.00022465,3]
[348468215,1736543435264,-500.0,0.00022465,3]
[348468216,1736543435273,-712.41,0.00022465,3]
[348468217,1736543435284,-830.12,0.00022465,2]
[348468218,1736543435293,-500.0,0.00022465,3]
[348468219,1736543435303,-962.03,0.00022465,3]
[348468220,1736543435312,-2291.34,0.00022465,3]
[348468221,1736543435323,-151.0,0.00022465,7]
[348468222,1736543435334,-500.0,0.00022465,3]
[348468223,1736543435345,-715.23,0.00022465,3]
[348468224,1736543435356,-608.37,0.00022465,3]
[348468225,1736543435366,-586.24495063,0.00022465,3]
[348468226,1736543435376,-4017.72,0.00022465,3]
[348468227,1736543435385,-797.95,0.00022465,3]
[348468228,1736543435395,-500.0,0.00022465,3]
[348468229,1736543435404,-500.0,0.00022465,3]
[348468230,1736543435414,-500.0,0.00022465,3]
[348468231,1736543435423,-500.0,0.00022465,3]
[348468232,1736543435433,-560.08,0.00022465,3]
[348468233,1736543435443,-650.45,0.00022465,3]
[348468234,1736543435454,-500.0,0.00022465,3]
[348468235,1736543435464,-500.0,0.00022465,3]
[348468236,1736543435473,-1678.9,0.00022465,3]
[348468237,1736543435483,-500.0,0.00022465,3]
[348468238,1736543435492,-1106.35,0.00022465,3]
[348468239,1736543435502,-500.0,0.00022465,3]
[348468240,1736543435511,-717.91,0.00022465,3]
[348468241,1736543435520,-4786.94,0.00022465,3]
[348468242,1736543435530,-1785.75,0.00022465,3]
[348468243,1736543435539,-935.06,0.00022465,3]
[348468244,1736543435549,-831.06,0.00022465,3]
[348468245,1736543435559,-500.0,0.00022465,3]
[348468246,1736543435568,-1018.92,0.00022465,3]
[348468247,1736543435578,-500.0,0.00022465,3]
[348468248,1736543435588,-1635.8,0.00022465,3]
[348468249,1736543435597,-500.0,0.00022465,3]
[348468250,1736543435607,-500.0,0.00022465,3]
[348468251,1736543435617,-500.0,0.00022465,3]
[348468252,1736543435627,-1377.89,0.00022465,3]
[348468253,1736543435636,-429.77779429,0.00022465,3]
[348468254,1736543436070,-394.0,0.00021698,2]
[348468255,1736543436080,-222.69220571,0.00022465,3]
[348468256,1736543436090,-150.0,0.00022648,2]
[348468257,1736543436099,-153.0,0.00022685,2]
[348468258,1736543436109,-342.3864402,0.00022685,2]
[348468259,1736543436118,-153.2995019,0.00022685,2]
[348468260,1736543436128,-500.0,0.00022739,3]
[348468261,1736543436138,-500.0,0.00022739,2]
[348468262,1736543436147,-500.0,0.00022739,3]
[348468263,1736543436157,-500.0,0.00022739,3]
[348468264,1736543436166,-4777.36,0.00022739,3]
[348468265,1736543436176,-539.42,0.00022739,3]
[348468266,1736543436185,-631.93,0.00022739,3]
[348468267,1736543436195,-503.57,0.00022739,3]
[348468268,1736543436204,-500.0,0.00022739,3]
[348468269,1736543436214,-500.0,0.00022739,3]
[348468270,1736543436223,-594.81,0.00022739,3]
[348468271,1736543436232,-574.99,0.00022739,3]
[348468272,1736543436242,-500.0,0.00022739,3]
[348468273,1736543436251,-500.0,0.00022739,3]
[348468274,1736543436262,-500.0,0.00022739,3]
[348468275,1736543436272,-500.0,0.00022739,3]
[348468276,1736543436281,-500.0,0.00022739,3]
[348468277,1736543436292,-500.0,0.00022739,3]
[348468278,1736543436301,-500.0,0.00022739,3]
[348468279,1736543436312,-500.0,0.00022739,3]
[348468280,1736543436324,-340.49480433,0.00022739,2]
[348468281,1736543436335,-500.0,0.00022739,3]
[348468282,1736543436345,-500.0,0.00022739,3]
[348468283,1736543436356,-690.11,0.00022739,3]
[348468284,1736543436365,-14708.06514738,0.00022739,3]
[348468285,1736543436378,-1474.82505206,0.00022739,3]
[348468302,1736543438545,-2110.57618151,0.00021917,3]
[348468344,1736543440865,-15502.39381849,0.00021917,3]
[348468346,1736543440875,-17612.97,0.00022191,3]
[348468348,1736543440885,-17612.97,0.00022465,3]
[348468350,1736543440895,-500.0,0.00022739,3]
[348468352,1736543440905,-879.76,0.00022739,3]
[348468354,1736543440914,-500.0,0.00022739,3]
[348468356,1736543440924,-500.0,0.00022739,3]
[348468358,1736543440935,-879.13,0.00022739,3]
[348468360,1736543440944,-500.0,0.00022739,3]
[348468362,1736543440954,-712.41,0.00022739,3]
[348468364,1736543440963,-830.12,0.00022739,2]
[348468365,1736543440973,-500.0,0.00022739,3]
[348468367,1736543440982,-962.03,0.00022739,3]
[348468369,1736543440992,-2291.34,0.00022739,3]
[348468371,1736543441002,-500.0,0.00022739,3]
[348468372,1736543441012,-715.23,0.00022739,3]
[348468374,1736543441022,-608.37,0.00022739,3]
[348468376,1736543441031,-4017.72,0.00022739,3]
[348468378,1736543441041,-797.95,0.00022739,3]
[348468380,1736543441051,-500.0,0.00022739,3]
[348468382,1736543441061,-500.0,0.00022739,3]
[348468384,1736543441071,-500.0,0.00022739,3]
[348468385,1736543441080,-500.0,0.00022739,3]
[348468387,1736543441089,-560.08,0.00022739,3]
[348468389,1736543441101,-650.45,0.00022739,3]
[348468390,1736543441114,-500.0,0.00022739,3]
[348468391,1736543441124,-500.0,0.00022739,3]
[348468392,1736543441134,-1678.9,0.00022739,3]
[348468393,1736543441144,-500.0,0.00022739,3]
[348468394,1736543441154,-1106.35,0.00022739,3]
[348468395,1736543441164,-500.0,0.00022739,3]
[348468396,1736543441176,-717.91,0.00022739,3]
[348468397,1736543441187,-4786.94,0.00022739,3]
[348468398,1736543441197,-1785.75,0.00022739,3]
[348468399,1736543441206,-935.06,0.00022739,3]
[348468400,1736543441216,-831.06,0.00022739,3]
[348468401,1736543441225,-500.0,0.00022739,3]
[348468402,1736543441235,-1018.92,0.00022739,3]
[348468403,1736543441245,-329.86277355,0.00022739,3]
[348468404,1736543441255,-1635.8,0.00022739,3]
[348468405,1736543441265,-500.0,0.00022739,3]
[348468406,1736543441275,-500.0,0.00022739,3]
[348468407,1736543441285,-500.0,0.00022739,3]
[348468408,1736543441295,-1377.89,0.00022739,3]
[348468409,1736543441305,-652.47,0.00022739,3]
[348468410,1736543441315,-302.3061063,0.00022739,3]
[348468722,1736543446659,-419.52770081,0.00021744,2]
[348468724,1736543446672,-338.53772778,0.00021744,2]
[348468729,1736543446714,-601.58740343,0.00021744,2]
[348468731,1736543446723,-500.0,0.00021917,3]
[348468733,1736543446733,-500.0,0.00021917,3]
[348468735,1736543446742,-500.0,0.00021917,3]
[348468736,1736543446752,-611.90609795,0.00021973,2]
[348468738,1736543446761,-367.98898083,0.00022191,3]
[348468740,1736543446771,-500.0,0.00022191,3]
[348468742,1736543446780,-500.0,0.00022465,3]
[348468744,1736543446790,-17310.6638937,0.00022739,3]
[348468746,1736543446799,-500.0,0.00022739,3]
[348468748,1736543446809,-158.941676,0.00022759,2]
[348468749,1736543446821,-300.0,0.000228,10]
[348468751,1736543446830,-501.06639573,0.00022804,8]
[348468753,1736543446839,-1200.0,0.00022819,2]
[348468755,1736543446848,-1362.62638397,0.000229,2]
[348468757,1736543446859,-182.32714222,0.00022913,2]
[348468759,1736543446869,-1362.62638376,0.00022934,2]
[348468760,1736543446878,-1362.62638376,0.00022969,2]
[348468762,1736543446887,-572.95378845,0.00023,3]
[348468764,1736543446897,-5237.12716378,0.00023,2]
[348468766,1736543446906,-1362.62638376,0.00023003,2]
[348468768,1736543446915,-500.0,0.00023013,3]
[348468770,1736543446925,-500.0,0.00023013,2]
[348468771,1736543446934,-243.0690509,0.00023013,3]
[348468773,1736543446943,-500.0,0.00023013,3]
[348468775,1736543446953,-4777.36,0.00023013,3]
[348468777,1736543446962,-539.42,0.00023013,3]
[348468779,1736543446972,-631.93,0.00023013,3]
[348468781,1736543446982,-503.57,0.00023013,3]
[348468783,1736543446991,-500.0,0.00023013,3]
[348468784,1736543447002,-500.0,0.00023013,3]
[348468786,1736543447011,-594.81,0.00023013,3]
[348468788,1736543447021,-574.99,0.00023013,3]
[348468790,1736543447030,-500.0,0.00023013,3]
[348468792,1736543447039,-500.0,0.00023013,3]
[348468794,1736543447049,-500.0,0.00023013,3]
[348468795,1736543447058,-500.0,0.00023013,3]
[348468797,1736543447068,-500.0,0.00023013,3]
[348468799,1736543447077,-500.0,0.00023013,3]
[348468801,1736543447087,-500.0,0.00023013,3]
[348468803,1736543447096,-500.0,0.00023013,3]
[348468805,1736543447106,-500.0,0.00023013,3]
[348468806,1736543447115,-500.0,0.00023013,3]
[348468808,1736543447124,-690.11,0.00023013,3]
[348468810,1736543447133,-879.76,0.00023013,3]
[348468812,1736543447143,-500.0,0.00023013,3]
[348468814,1736543447152,-879.13,0.00023013,3]
[348468816,1736543447162,-500.0,0.00023013,3]
[348468817,1736543447171,-712.41,0.00023013,3]
[348468819,1736543447181,-830.12,0.00023013,2]
[348468821,1736543447190,-500.0,0.00023013,3]
[348468823,1736543447200,-962.03,0.00023013,3]
[348468826,1736543447221,-2291.34,0.00023013,3]
[348468828,1736543447231,-500.0,0.00023013,3]
[348468830,1736543447241,-715.23,0.00023013,3]
[348468832,1736543447251,-608.37,0.00023013,3]
[348468834,1736543447261,-4017.72,0.00023013,3]
[348468835,1736543447271,-797.95,0.00023013,3]
[348468837,1736543447280,-500.0,0.00023013,3]
[348468839,1736543447290,-500.0,0.00023013,3]
[348468841,1736543447299,-502.73462903,0.00023013,3]
[348468843,1736543447308,-500.0,0.00023013,3]
[348468845,1736543447318,-560.08,0.00023013,3]
[348468847,1736543447327,-650.45,0.00023013,3]
[348468848,1736543447337,-500.0,0.00023013,3]
[348468850,1736543447346,-500.0,0.00023013,3]
[348468852,1736543447356,-1678.9,0.00023013,3]
[348468854,1736543447366,-500.0,0.00023013,3]
[348468856,1736543447376,-1106.35,0.00023013,3]
[348468858,1736543447386,-500.0,0.00023013,3]
[348468860,1736543447395,-717.91,0.00023013,3]
[348468862,1736543447405,-4786.94,0.00023013,3]
[348468882,1736543447615,-1785.75,0.00023013,3]
[348468883,1736543447625,-935.06,0.00023013,3]
[348468885,1736543447635,-831.06,0.00023013,3]
[348468887,1736543447645,-500.0,0.00023013,3]
[348468889,1736543447654,-1018.92,0.00023013,3]
[348468891,1736543447664,-1635.8,0.00023013,3]
[348468893,1736543447674,-500.0,0.00023013,3]
[348468895,1736543447684,-500.0,0.00023013,3]
[348468897,1736543447693,-500.0,0.00023013,3]
[348468898,1736543447703,-1377.89,0.00023013,3]
[348468900,1736543447713,-652.47,0.00023013,3]
[348468902,1736543447722,-17612.97,0.00023013,3]
[348468904,1736543447731,-1362.62638376,0.00023038,2]
[348468906,1736543447740,-1362.62638376,0.00023072,2]
[348468907,1736543447750,-1362.62638376,0.00023107,2]
[348468909,1736543447759,-1362.62638376,0.00023141,2]
[348468911,1736543447769,-1362.62638376,0.00023176,2]
[348468913,1736543447778,-4394.76393868,0.00023185,14]
[348468915,1736543447788,-151.0,0.000232,6]
[348468917,1736543447797,-150.110872,0.000232,2]
[348468919,1736543447807,-1362.62638376,0.0002321,2]
[348468920,1736543447817,-192.60002495,0.00023237,2]
[348468922,1736543447829,-22530.47014231,0.00023238,2]
[348468924,1736543447839,-1362.62638376,0.00023245,2]
[348468926,1736543447848,-1362.62638376,0.00023279,2]
[348468928,1736543447857,-500.0,0.00023287,3]
[348468930,1736543447867,-500.0,0.00023287,2]
[348468932,1736543447877,-500.0,0.00023287,3]
[348468934,1736543447886,-4777.36,0.00023287,3]
[348468935,1736543447895,-539.42,0.00023287,3]
[348468937,1736543447905,-631.93,0.00023287,3]
[348468939,1736543447915,-503.57,0.00023287,3]
[348468941,1736543447924,-500.0,0.00023287,3]
[348468943,1736543447934,-500.0,0.00023287,3]
[348468945,1736543447943,-594.81,0.00023287,3]
[348468947,1736543447952,-574.99,0.00023287,3]
[348468949,1736543447961,-170.46,0.00023287,3]
[348468951,1736543447970,-500.0,0.00023287,3]
[348468952,1736543447979,-500.0,0.00023287,3]
[348468955,1736543447993,-500.0,0.00023287,3]
[348468957,1736543448003,-500.0,0.00023287,3]
[348468958,1736543448012,-500.0,0.00023287,3]
[348468960,1736543448022,-500.0,0.00023287,3]
[348468962,1736543448031,-500.0,0.00023287,3]
[348468964,1736543448041,-500.0,0.00023287,3]
[348468966,1736543448051,-173.0810668,0.00023287,2]
[348468968,1736543448060,-150.18,0.00023287,2]
[348468970,1736543448069,-500.0,0.00023287,3]
[348468972,1736543448079,-690.11,0.00023287,3]
[348468973,1736543448089,-150.18,0.00023287,2]
[348468975,1736543448098,-378.60693496,0.00023287,3]
[348468978,1736543448113,-501.15306504,0.00023287,3]
[348468980,1736543448122,-150.18,0.00023287,2]
[348468981,1736543448132,-150.96947285,0.00023287,2]
[348468983,1736543448141,-150.7630401,0.00023287,2]
[348468985,1736543448152,-150.3267171,0.00023287,2]
[348468987,1736543448162,-500.0,0.00023287,3]
[348468989,1736543448171,-879.13,0.00023287,3]
[348468991,1736543448181,-500.0,0.00023287,3]
[348468993,1736543448190,-712.41,0.00023287,3]
[348468995,1736543448199,-830.12,0.00023287,2]
[348468997,1736543448209,-500.0,0.00023287,3]
[348468998,1736543448219,-962.03,0.00023287,3]
[348469000,1736543448228,-2291.34,0.00023287,3]
[348469002,1736543448238,-189.63437869,0.00023287,3]